bitfinex/quotes_SOLUSD_20241216
["timestamp","ask_amount","ask_price","bid_price","bid_amount"]
[1734370966679,0.5642931,220.0,219.99,3.78642903]
[1734370969226,0.5642931,220.0,219.99,3.78583575]
[1734370969720,0.5642931,220.0,219.99,3.78597266]
[1734370970993,0.5642931,220.0,219.99,37.14746719]
[1734370972531,0.5642931,220.0,219.99,37.08646768]
[1734370974519,0.5642931,220.0,219.99,37.08586893]
[1734370978715,0.5642931,220.0,219.99,39.19575566]
[1734370979038,0.5642931,220.0,219.99,39.19371978]
[1734370979522,0.5642931,220.0,219.99,35.47138126]
[1734370979728,0.5642931,220.0,219.99,39.19335233]
[1734370981205,0.5642931,220.0,219.99,35.47138126]
[1734370981412,0.5642931,220.0,219.99,39.19493377]
[1734370982424,0.5642931,220.0,219.99,62.97181777]
[1734370985214,1.5233,220.18,220.04,0.12549]
[1734370985534,10.47281848,220.17,220.08,20.0]
[1734370985842,1.5233,220.18,220.09,19.19493377]
[1734370986008,1.5233,220.18,220.1,5.83343924]
[1734370986212,11.99611848,220.18,220.11,12.61196454]
[1734370986525,11.99611848,220.18,220.12,5.8309184]
[1734370986832,11.99611848,220.18,220.13,10.50207781]
[1734370987024,11.99611848,220.18,220.13,6.7785253]
[1734370987751,10.47281848,220.16,220.14,3.71331409]
[1734370987918,10.47281848,220.16,220.13,6.7785253]
[1734370988122,10.47281848,220.17,220.13,6.7785253]
[1734370988651,11.99611848,220.18,220.13,6.7785253]
[1734370988824,1.5233,220.18,220.13,6.7785253]
[1734370989229,1.5233,220.18,220.13,13.36149453]
[1734370989850,11.99611848,220.18,220.13,13.36149453]
[1734370990248,10.47281848,220.15,220.13,6.7785253]
[1734370990426,10.47281848,220.14,220.13,6.7785253]
[1734370991432,1.5233,220.18,220.13,6.7785253]
[1734370991636,10.47281848,220.17,220.13,6.7785253]
[1734370992339,1.5233,220.18,220.13,6.7785253]
[1734370992931,11.99611848,220.18,220.13,6.7785253]
[1734370993240,1.5233,220.18,220.13,6.7785253]
[1734370994049,11.99611848,220.18,220.13,6.7785253]
[1734370994626,1.5233,220.18,220.13,6.7785253]
[1734370998025,10.47281848,220.19,220.13,6.7785253]
[1734370998837,0.5642931,220.22,220.13,6.7785253]
[1734370998838,10.47281848,220.21,220.13,13.36149453]
[1734370999051,10.47281848,220.21,220.14,6.58296923]
[1734370999347,20.0,220.21,220.14,6.58296923]
[1734370999522,20.0,220.19,220.14,13.36149453]
[1734371000163,0.5642931,220.22,220.15,6.7785253]
[1734371000460,0.5642931,220.22,220.15,13.36149453]
[1734371001022,0.5642931,220.22,220.16,30.35985323]
[1734371001242,0.5642931,220.22,220.17,6.7785253]
[1734371001447,0.5642931,220.22,220.17,13.36149453]
[1734371004938,0.5642931,220.22,220.2,20.0]
[1734371005140,10.91351264,220.25,220.17,13.36149453]
[1734371005141,10.91351264,220.25,220.21,20.0]
[1734371005343,10.91351264,220.25,220.23,20.0]
[1734371005534,10.91351264,220.25,220.24,33.0687562]
[1734371006560,1.264e-05,220.25,220.24,33.0687562]
[1734371007264,1.264e-05,220.25,220.24,26.7785253]
[1734371008528,1.264e-05,220.25,220.24,6.7785253]
[1734371008745,1.264e-05,220.25,220.2,6.2902309]
[1734371008938,1.264e-05,220.25,220.21,6.7785253]
[1734371010047,1.264e-05,220.25,220.24,20.0]
[1734371010556,1.264e-05,220.25,220.21,6.7785253]
[1734371010730,10.47283112,220.25,220.21,6.7785253]
[1734371010929,1.264e-05,220.25,220.21,6.7785253]
[1734371011549,1.264e-05,220.25,220.22,0.68095961]
[1734371011749,1.264e-05,220.25,220.23,6.7785253]
[1734371011954,1.264e-05,220.25,220.23,150.9687562]
[1734371012153,1.264e-05,220.25,220.24,6.2902309]
[1734371012360,1.264e-05,220.25,220.23,6.7785253]
[1734371015346,1.264e-05,220.25,220.24,23.902374]
[1734371015565,1.264e-05,220.25,220.24,30.6808993]
[1734371015769,1.264e-05,220.25,220.24,31.36166344]
[1734371016271,1.264e-05,220.25,220.24,144.6785253]
[1734371019371,1.264e-05,220.25,220.24,146.3766153]
[1734371019564,1.264e-05,220.25,220.24,152.6668462]
[1734371019771,1.264e-05,220.25,220.24,156.37066181]
[1734371020357,1.264e-05,220.25,220.24,180.14754581]
[1734371021248,1.5622,220.43,220.28,0.12549]
[1734371021562,10.47281848,220.38,220.32,20.0]
[1734371021757,1.5622,220.43,220.32,20.0]
[1734371021964,10.47281848,220.39,220.32,20.0]
[1734371022346,1.5622,220.43,220.33,0.12549]
[1734371022559,1.5622,220.43,220.37,20.0]
[1734371022766,0.5642931,220.44,220.37,20.0]
[1734371022963,0.5642931,220.44,220.37,26.40296974]
[1734371023276,0.5642931,220.44,220.38,20.0]
[1734371023449,0.5642931,220.44,220.42,20.0]
[1734371023650,0.5642931,220.44,220.43,0.12549]
[1734371023887,0.5642931,220.44,220.43,37.27574531]
[1734371024091,0.5642931,220.44,220.43,179.49557464]
[1734371024298,0.5642931,220.44,220.43,178.18434829]
[1734371025147,1.0,220.55,220.43,220.91944829]
[1734371025354,1.0,220.55,220.47,43.776884]
[1734371025554,1.0,220.55,220.5,0.12549]
[1734371025786,1.0,220.55,220.5,0.67997449]
[1734371025993,1.0,220.55,220.51,20.0]
[1734371026353,16.25914549,220.53,220.48,6.40296974]
[1734371026553,1.0,220.55,220.43,143.15579434]
[1734371026554,16.25914549,220.52,220.43,143.15579434]
[1734371026795,16.25914549,220.52,220.43,137.9]
[1734371027016,16.25914549,220.5,220.43,137.9]
[1734371027294,1.0,220.55,220.43,137.9]
[1734371027295,19.26609229,220.52,220.43,137.9]
[1734371028194,16.25914549,220.5,220.43,137.9]
[1734371028870,16.25914549,220.51,220.43,137.9]
[1734371029272,16.25914549,220.5,220.43,137.9]
[1734371030580,16.25914549,220.49,220.43,137.9]
[1734371030980,3.0069468,220.52,220.43,137.9]
[1734371030981,16.25914549,220.48,220.43,137.9]
[1734371031199,16.25914549,220.47,220.42,6.40296974]
[1734371031374,16.25914549,220.47,220.39,6.2902309]
[1734371031375,16.25914549,220.47,220.4,3.67924287]
[1734371031583,16.25914549,220.47,220.39,6.2902309]
[1734371031782,16.25914549,220.49,220.39,150.59320064]
[1734371031985,16.25914549,220.49,220.4,3.67924287]
[1734371032499,16.25914549,220.47,220.4,141.57924287]
[1734371032802,16.25914549,220.46,220.39,12.69320064]
[1734371033501,16.25914549,220.46,220.39,150.59320064]
[1734371033903,16.25914549,220.47,220.39,150.59320064]
[1734371034200,16.25914549,220.48,220.39,150.59320064]
[1734371034575,16.25914549,220.47,220.39,150.59320064]
[1734371035981,16.25914549,220.47,220.39,144.1902309]
[1734371036307,16.25914549,220.47,220.4,6.40296974]
[1734371037211,16.25914549,220.47,220.4,12.69320064]
[1734371038904,16.25914549,220.46,220.4,12.69320064]
[1734371039106,16.25914549,220.45,220.4,12.69320064]
[1734371039408,16.25914549,220.44,220.4,12.69320064]
[1734371039613,16.25914549,220.42,220.4,6.40296974]
[1734371039910,16.25914549,220.41,220.34,6.2902309]
[1734371040109,16.25914549,220.4,220.34,6.2902309]
[1734371041007,16.25914549,220.42,220.34,6.2902309]
[1734371041206,16.25914549,220.42,220.34,9.97108801]
[1734371041392,16.25914549,220.41,220.34,6.2902309]
[1734371041599,16.25914549,220.39,220.34,6.2902309]
[1734371041905,16.25914549,220.39,220.33,3.68085711]
[1734371042119,18.72728179,220.39,220.32,3.68085711]
[1734371042498,2.4681363,220.39,220.32,3.68085711]
[1734371042695,2.4681363,220.39,220.32,10.08382685]
[1734371042901,2.4681363,220.39,220.32,10.76447588]
[1734371043087,2.4681363,220.39,220.33,6.40296974]
[1734371043795,2.4681363,220.39,220.36,20.0]
[1734371044016,2.4681363,220.39,220.37,6.40296974]
[1734371045199,2.4681363,220.39,220.38,0.68045038]
[1734371045395,2.4681363,220.39,220.38,10.76864635]
[1734371045796,2.4681363,220.39,220.38,16.71221058]
[1734371046993,2.4681363,220.39,220.38,16.0317602]
[1734371047192,2.4681363,220.39,220.38,16.71211223]
[1734371048018,2.4681363,220.39,220.38,16.70914571]
[1734371048235,1e-08,220.39,220.38,154.73463571]
[1734371048518,0.5388105,220.44,220.43,20.0]
[1734371048688,0.5388105,220.44,220.43,36.02879368]
[1734371050100,0.53880636,220.44,220.43,36.02879368]
[1734371051217,0.53880636,220.44,220.43,32.34653397]
[1734371051525,0.53880636,220.44,220.43,36.0303491]
[1734371052822,0.53880636,220.44,220.43,36.71060462]
[1734371054823,0.53880636,220.44,220.43,33.02678949]
[1734371055032,0.53880636,220.44,220.43,36.71010549]
[1734371057703,1.0,220.55,220.44,43.902374]
[1734371057901,1.0,220.55,220.47,20.0]
[1734371058149,1.0,220.55,220.48,36.70983648]
[1734371058361,1.0,220.55,220.5,20.0]
[1734371058561,1.0,220.55,220.51,36.70982163]
[1734371058864,1.0,220.55,220.52,3.683316]
[1734371059035,1.0,220.55,220.53,3.683316]
[1734371059218,1.0,220.55,220.52,3.683316]
[1734371059542,1.0,220.55,220.51,170.24653397]
[1734371059749,1.0,220.55,220.51,150.24653397]
[1734371060364,1.0,220.55,220.52,0.6800541]
[1734371060513,1.0,220.55,220.53,6.40296974]
[1734371060956,1.0,220.55,220.53,12.34653397]
[1734371061314,0.82055032,220.55,220.53,12.34653397]
[1734371062442,0.82055032,220.55,220.51,137.9]
[1734371063042,0.82055032,220.55,220.52,0.68004201]
[1734371063350,0.82055032,220.55,220.52,13.02657598]
[1734371063521,0.32055032,220.55,220.52,13.02657598]
[1734371063922,0.32055032,220.55,220.52,12.34653397]
[1734371064344,16.07969581,220.59,220.52,150.24653397]
[1734371064657,17.88284549,220.61,220.52,150.24653397]
[1734371065010,15.75914549,220.58,220.52,144.30296974]
[1734371065253,16.25914549,220.57,220.52,144.30296974]
[1734371065467,16.25914549,220.53,220.47,148.22864139]
[1734371065764,16.25914549,220.53,220.47,150.24653397]
[1734371066159,16.25914549,220.54,220.47,150.24653397]
[1734371066327,16.25914549,220.52,220.47,12.34653397]
[1734371066530,0.12549,220.59,220.47,12.34653397]
[1734371066531,16.25914549,220.53,220.47,12.34653397]
[1734371067180,16.25914549,220.52,220.47,12.34653397]
[1734371067661,16.25914549,220.53,220.47,12.34653397]
[1734371068037,16.25914549,220.52,220.47,12.34653397]
[1734371068275,16.25914549,220.5,220.47,6.40296974]
[1734371068577,16.25914549,220.49,220.47,6.40296974]
[1734371069346,0.5,220.54,220.47,6.40296974]
[1734371069347,16.25914549,220.5,220.47,6.40296974]
[1734371069632,24.276884,220.54,220.43,4.39554356]
[1734371069633,16.25914549,220.48,220.43,4.39554356]
[1734371069751,16.25914549,220.46,220.43,4.39554356]
[1734371069955,16.25914549,220.47,220.41,148.23910779]
[1734371070150,1.5592,220.52,220.43,5.94356423]
[1734371070347,16.25914549,220.51,220.43,5.94356423]
[1734371070550,16.25914549,220.5,220.43,12.20259332]
[1734371070746,16.25914549,220.51,220.43,12.20259332]
[1734371070947,0.5,220.53,220.44,5.94356423]
[1734371071169,16.25914549,220.53,220.44,150.10259332]
[1734371071381,16.25914549,220.53,220.45,0.68015729]
[1734371071544,16.25914549,220.53,220.46,5.94356423]
[1734371072592,16.25914549,220.53,220.46,143.84356423]
[1734371072743,16.25914549,220.54,220.46,143.84356423]
[1734371073361,16.25914549,220.53,220.46,5.94356423]
[1734371073568,16.25914549,220.52,220.46,5.94356423]
[1734371073863,16.25914549,220.53,220.46,5.94356423]
[1734371074101,16.25914549,220.54,220.46,5.94356423]
[1734371074276,16.25914549,220.55,220.46,12.88272741]
[1734371075167,16.25914549,220.54,220.46,12.20259332]
[1734371075579,16.25914549,220.55,220.46,12.20259332]
[1734371075889,16.25914549,220.56,220.46,150.78274311]
[1734371076089,16.25914549,220.56,220.47,6.25902909]
[1734371076293,16.25914549,220.56,220.48,0.68010234]
[1734371076497,16.25914549,220.58,220.48,12.88269566]
[1734371076670,16.25914549,220.59,220.49,6.25902909]
[1734371076867,16.25914549,220.59,220.5,5.94356423]
[1734371078698,16.25914549,220.58,220.5,5.94356423]
[1734371079080,16.25914549,220.59,220.5,5.94356423]
[1734371079283,16.25914549,220.59,220.5,6.62356221]
[1734371079591,16.25914549,220.6,220.5,12.8825913]
[1734371079891,16.25914549,220.6,220.5,150.7825913]
[1734371080095,16.25914549,220.6,220.5,150.10259332]
[1734371080273,16.25914549,220.6,220.51,0.67995878]
[1734371080675,16.25914549,220.6,220.51,6.62352301]
[1734371080993,16.25914549,220.6,220.51,12.8825521]
[1734371081295,1.5099,220.64,220.52,12.20259332]
[1734371081475,16.25914549,220.61,220.53,0.67988]
[1734371081875,16.25914549,220.61,220.52,12.20259332]
[1734371082606,2.0099,220.64,220.52,12.20259332]
[1734371082607,16.25914549,220.6,220.52,12.20259332]
[1734371082801,16.25914549,220.62,220.52,12.20259332]
[1734371082964,16.25914549,220.61,220.52,12.20259332]
[1734371083394,16.25914549,220.62,220.52,12.20259332]
[1734371084364,16.25914549,220.61,220.52,12.20259332]
[1734371084586,16.25914549,220.6,220.52,12.20259332]
[1734371085169,16.25914549,220.61,220.52,12.20259332]
[1734371085366,16.25914549,220.61,220.52,150.10259332]
[1734371086401,16.25914549,220.58,220.52,6.25902909]
[1734371086790,16.25914549,220.59,220.52,6.25902909]
[1734371086987,16.25914549,220.61,220.52,6.25902909]
[1734371087195,16.25914549,220.62,220.52,6.25902909]
[1734371087399,16.25914549,220.63,220.52,6.25902909]
[1734371087696,16.25914549,220.61,220.52,12.20259332]
[1734371088196,16.25914549,220.6,220.52,12.20259332]
[1734371088412,2.0099,220.64,220.52,12.20259332]
[1734371088617,7.6111,220.6,220.52,12.20259332]
[1734371088784,1.5743,220.6,220.51,20.0]
[1734371088985,16.25914549,220.6,220.52,5.91236242]
[1734371089518,16.25914549,220.62,220.52,5.91236242]
[1734371089707,16.25914549,220.61,220.52,5.91236242]
[1734371090705,16.25914549,220.62,220.52,5.91236242]
[1734371091407,16.25914549,220.61,220.52,5.91236242]
[1734371091796,16.25914549,220.6,220.52,5.91236242]
[1734371092723,16.25914549,220.61,220.52,5.91236242]
[1734371093224,16.25914549,220.62,220.52,5.91236242]
[1734371093998,10.40269939,220.62,220.52,5.91236242]
[1734371094490,10.40269939,220.62,220.52,143.81236242]
[1734371094689,10.40269939,220.62,220.53,5.91236242]
[1734371095222,10.90269939,220.64,220.53,5.91236242]
[1734371095434,10.40269939,220.63,220.53,5.91236242]
[1734371095603,10.40269939,220.62,220.53,5.91236242]
[1734371097034,10.40269939,220.63,220.53,6.59230472]
[1734371097613,10.40269939,220.62,220.53,6.59230472]
[1734371099323,0.62549,220.64,220.53,6.59230472]
[1734371099525,11.02818939,220.64,220.53,12.47885493]
[1734371099720,10.40269939,220.63,220.53,12.47885493]
[1734371100035,10.40269939,220.61,220.53,12.47885493]
[1734371100236,10.40269939,220.61,220.54,2.07929183]
[1734371100537,0.62549,220.64,220.54,7.99165425]
[1734371100710,10.40269939,220.61,220.54,2.07929183]
[1734371101023,10.40269939,220.61,220.55,5.91236242]
[1734371101222,10.40269939,220.62,220.55,5.91236242]
[1734371102133,10.40269939,220.57,220.53,2.07929183]
[1734371102306,10.40269939,220.55,220.49,4.40842875]
[1734371102506,0.12549,220.6,220.49,5.91236242]
[1734371102842,10.40269939,220.58,220.5,6.44897353]
[1734371103218,10.40269939,220.57,220.5,6.44897353]
[1734371103817,0.12549,220.59,220.5,6.44897353]
[1734371104131,0.5,220.58,220.53,20.0]
[1734371104332,0.5,220.64,220.53,20.68009265]
[1734371104650,10.40269939,220.63,220.54,8.51732503]
[1734371104847,10.40269939,220.64,220.55,0.67985505]
[1734371105015,10.40269939,220.63,220.55,0.67985505]
[1734371105211,10.40269939,220.63,220.54,8.51732503]
[1734371105432,10.40269939,220.62,220.54,8.51732503]
[1734371105642,10.40269939,220.64,220.54,6.43460131]
[1734371105843,10.40269939,220.62,220.54,6.43460131]
[1734371106141,16.25356121,220.62,220.54,8.51800146]
[1734371107816,16.25356121,220.63,220.54,8.51800146]
[1734371108014,16.25356121,220.61,220.54,8.51800146]
[1734371108315,16.25356121,220.57,220.5,142.31705899]
[1734371108622,1.6329,220.62,220.48,4.41705899]
[1734371108623,16.25356121,220.53,220.48,4.41705899]
[1734371108824,16.25356121,220.51,220.42,137.9]
[1734371109023,6.3044,220.61,220.41,1.5016]
[1734371109024,0.5,220.5,220.41,1.5016]
[1734371109232,16.25356121,220.5,220.45,4.41593166]
[1734371109433,16.25356121,220.51,220.42,4.41593166]
[1734371109825,16.25356121,220.53,220.41,5.91753166]
[1734371110024,16.25356121,220.56,220.43,138.58029815]
[1734371110332,0.5,220.6,220.44,144.19015687]
[1734371110333,16.25356121,220.57,220.44,144.19015687]
[1734371110510,16.25356121,220.57,220.45,0.68013396]
[1734371110847,16.25356121,220.57,220.45,5.09606562]
[1734371111066,16.25356121,220.57,220.46,6.29015687]
[1734371111226,16.75356121,220.56,220.46,10.70608853]
[1734371111851,16.25356121,220.55,220.46,10.70608853]
[1734371112054,0.62549,220.59,220.47,0.68021048]
[1734371112366,16.25356121,220.58,220.48,6.29015687]
[1734371112571,16.75356121,220.57,220.48,6.29015687]
[1734371112856,16.25356121,220.56,220.48,6.29015687]
[1734371113650,16.25356121,220.57,220.48,6.29015687]
[1734371113821,0.5,220.56,220.48,6.29015687]
[1734371114229,0.12549,220.55,220.46,137.9]
[1734371114456,16.37905121,220.55,220.46,137.9]
[1734371114640,16.25356121,220.57,220.46,137.9]
[1734371114939,0.5,220.56,220.46,137.9]
[1734371115334,16.25356121,220.57,220.46,142.31485658]
[1734371115825,0.12549,220.57,220.46,4.41485658]
[1734371116022,0.5,220.6,220.47,0.52078631]
[1734371116023,16.75356121,220.6,220.47,0.52078631]
[1734371116256,0.12549,220.59,220.49,20.0]
[1734371116456,0.12549,220.59,220.48,7.9092]
[1734371116637,16.37905121,220.59,220.48,7.9092]
[1734371116835,0.12549,220.6,220.48,7.9092]
[1734371117062,16.87905121,220.6,220.48,7.9092]
[1734371117563,0.62549,220.6,220.49,0.68009056]
[1734371118274,0.62549,220.6,220.49,5.09420908]
[1734371119466,0.62549,220.6,220.5,3.70712702]
[1734371119769,0.62549,220.6,220.51,3.70712702]
[1734371120075,16.87905121,220.6,220.52,3.70712702]
[1734371120238,16.25356121,220.59,220.53,3.70712702]
[1734371120581,0.5,220.72,220.57,20.0]
[1734371120778,16.25356121,220.71,220.58,23.70712702]
[1734371121063,1.0388105,220.65,220.59,4.38691396]
[1734371121251,1.0388105,220.65,220.6,5.97037427]
[1734371121456,1.0388105,220.65,220.61,5.97037427]
[1734371121665,1.0388105,220.65,220.58,5.87091134]
[1734371121666,1.0388105,220.65,220.62,2.26324725]
[1734371121847,1.0388105,220.65,220.58,5.87091134]
[1734371122211,1.0388105,220.65,220.59,5.9659446]
[1734371122374,1.0388105,220.65,220.58,5.87091134]
[1734371122375,1.0388105,220.65,220.6,3.9362226]
[1734371122670,1.0388105,220.65,220.6,6.19894239]
[1734371122847,1.0388105,220.65,220.61,3.9362226]
[1734371123170,1.0388105,220.65,220.62,3.9362226]
[1734371123332,0.5,220.64,220.57,149.15266716]
[1734371123671,0.5,220.64,220.58,6.17253632]
[1734371123964,0.5,220.64,220.59,6.17253632]
[1734371124148,0.5,220.64,220.6,6.17253632]
[1734371124338,0.5,220.64,220.61,3.93622815]
[1734371124535,0.5,220.64,220.62,3.93622815]
[1734371124748,1.5388105,220.65,220.58,2.23630817]
[1734371124956,1.5388105,220.65,220.59,3.93603258]
[1734371125253,1.5388105,220.65,220.57,6.4013]
[1734371125559,1.5388105,220.65,220.59,6.14204275]
[1734371125560,1.0388105,220.65,220.59,6.14204275]
[1734371125866,1.0388105,220.65,220.6,3.93573569]
[1734371126078,1.0388105,220.65,220.61,10.07777844]
[1734371126375,1.0388105,220.65,220.62,3.93573569]
[1734371126557,1.0388105,220.65,220.63,3.93573569]
[1734371126878,1.0388105,220.65,220.64,3.93393202]
[1734371127252,1.0388105,220.65,220.61,6.14204275]
[1734371127483,1.0388105,220.65,220.62,3.9356373]
[1734371127777,1.0388105,220.65,220.63,3.9356373]
[1734371127974,1.0388105,220.65,220.61,6.14204275]
[1734371128158,1.0388105,220.65,220.62,3.93591777]
[1734371128356,1.0388105,220.65,220.63,3.93591777]
[1734371128671,1.0388105,220.65,220.63,6.14204275]
[1734371129251,1.0388105,220.65,220.59,2.14182809]
[1734371129451,1.0388105,220.65,220.6,3.93477067]
[1734371129744,1.0388105,220.65,220.61,3.93477067]
[1734371129950,1.0388105,220.65,220.62,3.93477067]
[1734371130176,1.0388105,220.65,220.59,2.14182809]
[1734371130378,1.0388105,220.65,220.6,3.87377629]
[1734371130678,1.0388105,220.65,220.61,3.87377629]
[1734371130871,1.0388105,220.65,220.58,137.9]
[1734371130872,17.79237171,220.65,220.58,137.9]
[1734371131069,17.79237171,220.65,220.59,3.87550557]
[1734371131271,1.5388105,220.65,220.6,3.87550557]
[1734371131574,1.0388105,220.65,220.58,137.9]
[1734371131773,1.0388105,220.65,220.59,3.87499011]
[1734371131984,1.0388105,220.65,220.6,3.87499011]
[1734371132206,1.0388105,220.65,220.61,3.87499011]
[1734371132369,1.0388105,220.65,220.58,137.9]
[1734371132567,1.0388105,220.65,220.48,30.0]
[1734371132568,16.25356121,220.59,220.48,1.5575]
[1734371132870,16.25356121,220.5,220.43,139.4575]
[1734371133182,10.0,220.62,220.43,139.4575]
[1734371133183,16.25356121,220.51,220.43,139.4575]
[1734371133578,5.0,220.62,220.43,139.4575]
[1734371133579,16.25356121,220.55,220.44,6.70282645]
[1734371133778,16.25356121,220.51,220.44,2.82373052]
[1734371133991,16.25356121,220.5,220.42,2.1434935]
[1734371134175,16.25356121,220.5,220.41,6.0734]
[1734371134375,16.25356121,220.5,220.41,6.90302271]
[1734371134572,16.25356121,220.49,220.42,0.82958507]
[1734371134785,16.25356121,220.5,220.41,6.0734]
[1734371134979,16.25356121,220.52,220.41,6.0734]
[1734371135181,16.25356121,220.52,220.42,0.68031024]
[1734371135703,16.25356121,220.53,220.42,0.68031024]
[1734371137696,16.25356121,220.53,220.42,138.58031024]
[1734371137909,16.25356121,220.53,220.43,2.1434935]
[1734371138418,16.25356121,220.54,220.44,138.58018094]
[1734371138586,16.25356121,220.54,220.44,137.9]
[1734371138985,16.25356121,220.53,220.44,137.9]
[1734371139889,16.25356121,220.52,220.44,137.9]
[1734371140279,16.25356121,220.53,220.44,137.9]
[1734371140700,16.25356121,220.54,220.44,137.9]
[1734371141297,16.25356121,220.56,220.45,138.58019422]
[1734371141602,16.25356121,220.56,220.45,137.9]
[1734371141900,16.25356121,220.56,220.47,1.5398]
[1734371142683,16.25356121,220.56,220.48,0.68009215]
[1734371143189,16.25356121,220.56,220.48,138.58009215]
[1734371143503,0.5,220.61,220.48,137.9]
[1734371143504,16.25356121,220.57,220.48,137.9]
[1734371143799,16.25356121,220.58,220.48,137.9]
[1734371144177,16.25356121,220.6,220.48,137.9]
[1734371144581,16.25356121,220.6,220.49,0.67999945]
[1734371144786,16.25356121,220.59,220.49,138.57999945]
[1734371144984,16.25356121,220.57,220.5,20.0]
[1734371146091,16.25356121,220.6,220.51,0.68009646]
[1734371146504,16.25356121,220.61,220.51,0.68009646]
[1734371147502,16.25356121,220.62,220.51,145.07739646]
[1734371147712,16.25356121,220.62,220.51,144.3973]
[1734371148407,5.0,220.7,220.54,157.9]
[1734371148408,17.29237171,220.65,220.54,157.9]
[1734371148576,17.29237171,220.65,220.55,138.57981913]
[1734371148777,17.29237171,220.65,220.55,137.9]
[1734371149901,17.29237171,220.65,220.56,0.67983152]
[1734371150701,1.0388105,220.65,220.56,0.67983152]
[1734371150920,1.0388105,220.65,220.57,1.5689]
[1734371152105,16.25356121,220.64,220.57,1.5689]
[1734371152478,17.29237171,220.65,220.57,1.5689]
[1734371154411,1.0388105,220.65,220.57,1.5689]
[1734371154586,1.0388105,220.65,220.58,0.67981361]
[1734371154783,1.0388105,220.65,220.58,138.57981361]
[1734371154983,1.0388105,220.65,220.58,137.9]
[1734371155185,1.0388105,220.65,220.59,0.67974757]
[1734371156389,1.0388105,220.65,220.58,137.9]
[1734371159911,11.43593474,220.65,220.58,137.9]
[1734371160281,1.0388105,220.65,220.58,137.9]
[1734371160485,1.0388105,220.65,220.57,139.4689]
[1734371161125,1.0388105,220.65,220.58,6.4836]
[1734371161328,1.0388105,220.65,220.58,7.16331464]
[1734371162719,1.0388105,220.65,220.61,157.9]
[1734371163016,1.0388105,220.65,220.62,138.57960505]
[1734371163223,1.0388105,220.65,220.64,20.0]
[1734371163387,1.0388105,220.65,220.64,22.33272234]
[1734371163600,1.0388105,220.65,220.62,137.9]
[1734371163814,1.0388105,220.65,220.59,1.6532]
[1734371163815,10.39712424,220.64,220.59,1.6532]
[1734371164030,1.0388105,220.65,220.59,1.6532]
[1734371167813,1.0388105,220.65,220.55,139.4735]
[1734371168019,11.43593474,220.65,220.55,139.4735]
[1734371170211,10.39712424,220.64,220.55,139.4735]
[1734371170430,11.43593474,220.65,220.55,139.4735]
[1734371170707,10.39712424,220.64,220.55,139.4735]
[1734371171212,10.39712424,220.64,220.51,2.08003545]
[1734371171213,10.39712424,220.59,220.51,139.98003545]
[1734371171419,10.39712424,220.59,220.51,137.9]
[1734371171730,10.39712424,220.58,220.51,137.9]
[1734371172741,1.6245,220.64,220.52,162.35693262]
[1734371172913,1.6245,220.64,220.55,20.0]
[1734371173107,1.6245,220.64,220.55,20.67981792]
[1734371173307,1.6245,220.64,220.55,0.67981792]
[1734371173616,10.39712424,220.63,220.55,20.0]
[1734371173821,1.6245,220.64,220.55,20.0]
[1734371174126,12.02162424,220.64,220.55,20.0]
[1734371174811,10.39712424,220.63,220.55,20.0]
[1734371175138,10.39712424,220.63,220.52,142.77153843]
[1734371175139,10.39712424,220.6,220.52,137.9]
[1734371175313,10.39712424,220.59,220.52,137.9]
[1734371175513,10.39712424,220.58,220.47,144.5504]
[1734371175912,10.39712424,220.59,220.48,0.68007208]
[1734371176324,11.02261424,220.58,220.47,149.42193843]
[1734371176523,11.02261424,220.58,220.47,142.77153843]
[1734371176721,10.39712424,220.57,220.47,137.9]
[1734371176943,10.39712424,220.56,220.47,137.9]
[1734371177259,0.12549,220.55,220.42,153.69451002]
[1734371177548,0.12549,220.55,220.43,2.78911451]
[1734371177736,0.5,220.56,220.45,20.0]
[1734371177937,10.89712424,220.6,220.46,20.0]
[1734371178113,16.75891929,220.6,220.46,20.0]
[1734371178539,16.38440929,220.59,220.48,20.0]
[1734371178744,0.5,220.58,220.48,20.0]
[1734371180670,6.1561,220.61,220.49,0.68009589]
[1734371180880,0.5,220.62,220.5,23.776884]
[1734371181174,1.0388105,220.65,220.54,20.0]
[1734371181473,1.0388105,220.65,220.56,20.0]
[1734371181979,1.0388105,220.65,220.57,0.67978117]
[1734371182327,1.0388105,220.65,220.57,138.57978117]
[1734371182478,1.0388105,220.65,220.58,0.67974733]
[1734371182641,1.0388105,220.65,220.57,137.9]
[1734371183263,1.0388105,220.65,220.58,7.61789358]
[1734371183547,1.0388105,220.65,220.58,2.78877061]
[1734371183750,1.0388105,220.65,220.58,145.51770864]
[1734371183948,1.0388105,220.65,220.56,24.39782115]